[Event "Polish Youth G16 Championship 2023"]
[Site "Jastrzebia Gora"]
[Date "2023.03.12"]
[Round "1.16"]
[White "Oborska, Magda"]
[Black "Pastuszko, Katarzyna"]
[Result "0-1"]
[ECO "C60"]
[WhiteElo "1613"]
[BlackElo "1286"]
[Annotator "NA RC COMBH"]
[PlyCount "70"]
[EventDate "2023.03.11"]
[EventType "swiss"]
[EventCountry "POL"]
[SourceTitle "playchess.com"]
[Source "ChessBase"]
[SourceQuality "1"]
[TimeControl "40/5400+30:1800+30"]

1. e4 {[%emt 0:00:03]} e5 {[%emt 0:00:06]} 2. Nf3 {[%emt 0:00:04]} Nc6 {[%emt 0:00:07]} 3. Bb5 {[%emt 0:00:04]} Nge7 {[%emt 0:00:09]} 4. Nc3 {[%emt 0:00:40]} g6 {[%emt 0:00:36]} 5. d3 {[%emt 0:00:47]} Bg7 {[%emt 0:00:24]} 6. O-O {[%emt 0:01:01]} O-O {[%emt 0:00:26]} 7. Re1 {[%emt 0:00:17]} h6 {[%emt 0:02:06]} 8. h3 {[%emt 0:00:56]} d6 {[%emt 0:00:42]} 9. Bc4 {[%emt 0:03:28]} Na5 {[%emt 0:05:20]} 10. Bb3 {[%emt 0:02:12]} Nxb3 {[%emt 0:00:41]} 11. axb3 {[%emt 0:00:07]} Be6 {[%emt 0:02:25]} 12. d4 {[%emt 0:02:15]} a6 {[%emt 0:07:48]} 13. Be3 {[%emt 0:04:44]} f5 {[%emt 0:11:33]} 14. dxe5 {[%emt 0:13:26]} f4 {[%emt 0:04:33]} 15. Bd4 {[%emt 0:02:26]} c5 {[%emt 0:01:17]} 16. exd6 {[%emt 0:00:36]} cxd4 {[%emt 0:00:54]} 17. dxe7 {[%emt 0:00:36]} Qxe7 {[%emt 0:00:41]} 18. Nxd4 {[%emt 0:06:31]} Bxd4 {[%emt 0:05:07]} 19. Qxd4 {[%emt 0:02:35]} f3 {[%emt 0:03:14]} 20. Qe5 {[%emt 0:06:54]} fxg2 {[%emt 0:04:58]} 21. Qg3 {[%emt 0:08:26]} Qf7 {[%emt 0:04:06]} 22. Kxg2 {[%emt 0:02:44]} Rac8 {[%emt 0:02:00]} 23. Rf1 {[%emt 0:21:12]} Rc5 {[%emt 0:03:05]} 24. f4 {[%emt 0:02:26]} Kh8 {[%emt 0:08:45]} 25. e5 {[%emt 0:04:15]} b5 {[%emt 0:05:20]} 26. Rf2 {[%emt 0:07:43]} b4 {[%emt 0:01:32]} 27. Qe3 {[%emt 0:04:07]} Rfc8 {[%emt 0:03:39]} 28. Ne4 {[%emt 0:00:37]} Rxc2 {[%emt 0:01:12]} 29. Nd6 {[%emt 0:00:24]} Rxf2+ {[%emt 0:04:25]} 30. Qxf2 {[%emt 0:00:13]} Bxh3+ 31. Kxh3 {[%emt 0:01:05]} Qxb3+ {[%emt 0:06:27]} 32. Qg3 {[%emt 0:03:02]} Qxb2 {[%emt 0:01:01]} 33. Nxc8 {[%emt 0:00:26]} Qxa1 {[%emt 0:00:19]} 34. Nd6 {[%emt 0:00:30]} Qh1+ {[%emt 0:04:07]} 35. Kg4 {[%emt 0:00:31]} Qh5# {[%emt 0:00:10]} 0-1

[Event "Polish Youth G16 Championship 2023"]
[Site "Jastrzebia Gora"]
[Date "2023.03.12"]
[Round "1.17"]
[White "Makarec, Anna"]
[Black "Kicinska, Magdalena"]
[Result "0-1"]
[ECO "B18"]
[WhiteElo "1271"]
[BlackElo "1573"]
[Annotator "NA RC COMBH"]
[PlyCount "76"]
[EventDate "2023.03.11"]
[EventType "swiss"]
[EventCountry "POL"]
[SourceTitle "playchess.com"]
[Source "ChessBase"]
[SourceQuality "1"]
[TimeControl "40/5400+30:1800+30"]

1. e4 c6 2. d4 d5 3. Nc3 dxe4 4. Nxe4 Bf5 5. Ng3 Bg6 6. N1e2 e6 7. Nf4 Bd6 8. c3 Nf6 9. h4 Qc7 10. Qf3 Bxf4 11. Bxf4 Qb6 12. b3 h6 13. Bd6 Nbd7 14. Bc4 Nd5 15. h5 Bh7 16. O-O N7f6 17. a4 Qa5 18. b4 Qd8 19. Be5 O-O 20. Bxf6 Qxf6 21. Qxf6 Nxf6 22. Rfd1 Nd5 23. Ne2 Bf5 24. f3 Ne3 25. Bd3 Nxd1 26. Bxf5 Nxc3 27. Nxc3 exf5 28. d5 Rac8 29. dxc6 Rxc6 30. Nd5 Re8 31. Rd1 Kf8 32. Nf4 Rc4 33. g3 Rxb4 34. Rd5 Rxa4 35. Rxf5 Ra2 36. Kf1 a5 37. Ng6+ Kg8 38. Ne5 Rc8 0-1

[Event "Polish Youth G16 Championship 2023"]
[Site "Jastrzebia Gora"]
[Date "2023.03.12"]
[Round "1.18"]
[White "Kulczycka, Zofia"]
[Black "Lach, Alicja"]
[Result "1-0"]
[ECO "B38"]
[WhiteElo "1547"]
[BlackElo "1231"]
[Annotator "NA RC COMBH"]
[PlyCount "59"]
[EventDate "2023.03.11"]
[EventType "swiss"]
[EventCountry "POL"]
[SourceTitle "playchess.com"]
[Source "ChessBase"]
[SourceQuality "1"]
[TimeControl "40/5400+30:1800+30"]

1. e4 c5 2. Nf3 Nc6 3. d4 cxd4 4. Nxd4 g6 5. c4 Bg7 6. Be3 Nf6 7. Nc3 O-O 8. Be2 d6 9. Qd2 Bd7 10. O-O Nxd4 11. Bxd4 Bc6 12. Bd3 a5 13. Rae1 Nd7 14. Bxg7 Kxg7 15. Re3 Nc5 16. Rh3 h5 17. Bc2 f6 18. f4 Rh8 19. Kh1 Rh6 20. Qe2 Qc7 21. Rg3 h4 22. Re3 h3 23. g4 Rh4 24. Nd5 Qd8 25. g5 fxg5 26. fxg5 e6 27. Qf2 Qxg5 28. Rg3 Qh5 29. Qf7+ Kh6 30. Nf6 1-0

[Event "Polish Youth G16 Championship 2023"]
[Site "Jastrzebia Gora"]
[Date "2023.03.12"]
[Round "1.19"]
[White "Racis, Dominika"]
[Black "Giemza, Julia"]
[Result "0-1"]
[ECO "E61"]
[WhiteElo "1201"]
[BlackElo "1536"]
[Annotator "NA RC COMBH"]
[PlyCount "84"]
[EventDate "2023.03.11"]
[EventType "swiss"]
[EventCountry "POL"]
[SourceTitle "playchess.com"]
[Source "ChessBase"]
[SourceQuality "1"]
[TimeControl "40/5400+30:1800+30"]

1. d4 {[%emt 0:00:02]} Nf6 {[%emt 0:00:04]} 2. c4 {[%emt 0:00:13]} g6 {[%emt 0:00:10]} 3. Nc3 {[%emt 0:01:16]} Bg7 {[%emt 0:00:09]} 4. Nf3 {[%emt 0:08:53]} d6 {[%emt 0:02:05]} 5. h3 {[%emt 0:07:38]} O-O {[%emt 0:06:13]} 6. e3 {[%emt 0:01:46]} Nc6 {[%emt 0:13:52]} 7. a3 {[%emt 0:31:52]} Re8 {[%emt 0:00:27]} 8. d5 {[%emt 0:05:55]} Nb8 {[%emt 0:03:02]} 9. Bd3 {[%emt 0:04:28]} e6 {[%emt 0:00:30]} 10. O-O {[%emt 0:00:49]} exd5 {[%emt 0:06:44]} 11. cxd5 {[%emt 0:05:49]} Nbd7 {[%emt 0:03:19]} 12. e4 {[%emt 0:00:30]} Nc5 {[%emt 0:00:30]} 13. Re1 {[%emt 0:02:29]} Nxd3 {[%emt 0:05:37]} 14. Qxd3 {[%emt 0:00:15]} a5 {[%emt 0:06:16]} 15. Bg5 {[%emt 0:05:17]} h6 {[%emt 0:01:50]} 16. Bh4 {[%emt 0:00:30]} Qd7 {[%emt 0:00:30]} 17. Bg3 {[%emt 0:00:30]} Nh5 {[%emt 0:21:43]} 18. Rac1 {[%emt 0:08:59]} Nxg3 {[%emt 0:02:47]} 19. fxg3 {[%emt 0:00:09]} c6 {[%emt 0:02:46]} 20. b3 {[%emt 0:01:54]} c5 {[%emt 0:03:28]} 21. Nd2 {[%emt 0:04:47]} Re7 {[%emt 0:07:34]} 22. Na4 {[%emt 0:01:36]} Qc7 {[%emt 0:01:55]} 23. Nc4 {[%emt 0:00:44]} b5 {[%emt 0:02:42]} 24. Ncb6 {[%emt 0:01:05]} Rb8 {[%emt 0:00:22]} 25. Qxb5 {[%emt 0:02:01]} Bd7 {[%emt 0:01:06]} 26. Qd3 {[%emt 0:01:07]} Rxb6 {[%emt 0:00:16]} 27. Nxb6 {[%emt 0:00:08]} Qxb6 {[%emt 0:00:30]} 28. Kh2 {[%emt 0:00:30]} Bb5 {[%emt 0:00:31]} 29. Qc2 {[%emt 0:01:51]} Be5 {[%emt 0:00:41]} 30. Qd2 {[%emt 0:00:56]} Kg7 {[%emt 0:00:30]} 31. Re3 {[%emt 0:00:29]} a4 {[%emt 0:00:59]} 32. Rb1 {[%emt 0:00:34]} Qa7 {[%emt 0:02:03]} 33. Rf3 {[%emt 0:00:57]} axb3 {[%emt 0:00:51]} 34. Rfxb3 {[%emt 0:00:11]} Ba4 {[%emt 0:00:19]} 35. Rb6 {[%emt 0:01:03]} c4 {[%emt 0:01:13]} 36. Qb4 {[%emt 0:00:37]} Bc2 {[%emt 0:00:57]} 37. Rc1 {[%emt 0:00:26]} Bd3 {[%emt 0:00:07]} 38. Rc6 {[%emt 0:00:41]} Qe3 {[%emt 0:00:34]} 39. Qe1 {[%emt 0:00:16]} Bxg3+ {[%emt 0:01:16]} 40. Qxg3 {[%emt 0:00:00]} Qxc1 {[%emt 0:00:00]} 41. Qxd6 {[%emt 0:00:26]} Qg5 {[%emt 0:00:29]} 42. Rc8 {[%emt 0:01:06]} Bxe4 {[%emt 0:02:27]} 0-1

[Event "Polish Youth G16 Championship 2023"]
[Site "Jastrzebia Gora"]
[Date "2023.03.12"]
[Round "1.21"]
[White "Dura, Anna"]
[Black "Nieckarz, Maja"]
[Result "1-0"]
[ECO "A24"]
[WhiteElo "1186"]
[BlackElo "1493"]
[Annotator "NA RC COMBH"]
[PlyCount "87"]
[EventDate "2023.03.11"]
[EventType "swiss"]
[EventCountry "POL"]
[SourceTitle "playchess.com"]
[Source "ChessBase"]
[SourceQuality "1"]
[TimeControl "40/5400+30:1800+30"]

1. c4 {[%emt 0:00:01]} e5 {[%emt 0:00:18]} 2. Nc3 {[%emt 0:00:05]} Nf6 {[%emt 0:00:19]} 3. g3 {[%emt 0:00:15]} g6 {[%emt 0:00:09]} 4. Bg2 {[%emt 0:00:15]} Bg7 {[%emt 0:00:59]} 5. Nf3 {[%emt 0:00:41]} d6 {[%emt 0:01:28]} 6. d4 {[%emt 0:02:15]} exd4 {[%emt 0:03:02]} 7. Nxd4 {[%emt 0:00:34]} O-O {[%emt 0:00:24]} 8. O-O {[%emt 0:01:21]} Nbd7 {[%emt 0:02:00]} 9. Rb1 {[%emt 0:07:51]} Rb8 {[%emt 0:02:13]} 10. b3 {[%emt 0:01:25]} Nc5 {[%emt 0:02:23]} 11. Bb2 {[%emt 0:02:21]} Re8 {[%emt 0:05:36]} 12. b4 {[%emt 0:04:01]} Nce4 {[%emt 0:07:15]} 13. Nxe4 {[%emt 0:05:05]} Nxe4 {[%emt 0:00:06]} 14. Qd3 {[%emt 0:02:39]} Qe7 {[%emt 0:08:36]} 15. a3 {[%emt 0:04:40]} Ng5 {[%emt 0:05:10]} 16. Rfe1 {[%emt 0:05:06]} Bh3 {[%emt 0:04:57]} 17. Bh1 {[%emt 0:06:32]} c5 {[%emt 0:14:36]} 18. Nc2 {[%emt 0:01:23]} Bxb2 {[%emt 0:02:27]} 19. Rxb2 {[%emt 0:00:47]} Qf6 {[%emt 0:01:00]} 20. Rbb1 {[%emt 0:01:33]} Bf5 {[%emt 0:02:20]} 21. Qd2 {[%emt 0:09:22]} Nh3+ {[%emt 0:00:53]} 22. Kg2 {[%emt 0:02:55]} Bxc2 {[%emt 0:02:01]} 23. Qxc2 {[%emt 0:03:19]} Nxf2 {[%emt 0:00:56]} 24. Rf1 {[%emt 0:01:41]} Qd4 {[%emt 0:04:49]} 25. Rxf2 {[%emt 0:01:59]} Re3 {[%emt 0:02:18]} 26. Rd1 {[%emt 0:07:18]} Qg4 {[%emt 0:03:02]} 27. Rxd6 {[%emt 0:03:31]} Rbe8 {[%emt 0:04:38]} 28. Rd2 {[%emt 0:04:44]} h5 {[%emt 0:01:09]} 29. Rf3 {[%emt 0:03:21]} h4 {[%emt 0:00:44]} 30. Kf2 {[%emt 0:01:15]} Qh3 {[%emt 0:10:46]} 31. Rxe3 {[%emt 0:02:59]} Qxh2+ {[%emt 0:00:25]} 32. Bg2 {[%emt 0:00:12]} Rxe3 {[%emt 0:00:40]} 33. Kxe3 {[%emt 0:00:29]} Qxg3+ {[%emt 0:01:16]} 34. Bf3 {[%emt 0:00:45]} Qg1+ {[%emt 0:03:36]} 35. Ke4 {[%emt 0:01:32]} h3 {[%emt 0:01:22]} 36. Qd3 {[%emt 0:03:27]} f5+ {[%emt 0:02:54]} 37. Ke5 {[%emt 0:00:24]} Qg3+ {[%emt 0:00:42]} 38. Ke6 {[%emt 0:00:34]} h2 {[%emt 0:01:02]} 39. Qd8+ {[%emt 0:00:44]} Kh7 {[%emt 0:00:07]} 40. Rd7+ {[%emt 0:00:00]} Kh6 {[%emt 0:00:00]} 41. Qf8+ {[%emt 0:01:25]} Kg5 {[%emt 0:00:46]} 42. Qf6+ {[%emt 0:00:52]} Kh6 {[%emt 0:00:07]} 43. Rd8 {[%emt 0:00:47]} Qg5 {[%emt 0:00:27]} 44. Rh8# {[%emt 0:00:16]} 1-0

[Event "Polish Youth G16 Championship 2023"]
[Site "Jastrzebia Gora"]
[Date "2023.03.12"]
[Round "1.22"]
[White "Pietryk, Joanna"]
[Black "Danek, Wiktoria"]
[Result "1-0"]
[ECO "C70"]
[WhiteElo "1488"]
[BlackElo "1161"]
[Annotator "NA RC COMBH"]
[PlyCount "95"]
[EventDate "2023.03.11"]
[EventType "swiss"]
[EventCountry "POL"]
[SourceTitle "playchess.com"]
[Source "ChessBase"]
[SourceQuality "1"]
[TimeControl "40/5400+30:1800+30"]

1. e4 {[%emt 0:00:04]} e5 {[%emt 0:00:11]} 2. Nf3 {[%emt 0:00:08]} Nc6 {[%emt 0:00:16]} 3. Bb5 {[%emt 0:00:10]} a6 {[%emt 0:00:42]} 4. Ba4 {[%emt 0:00:08]} Bc5 {[%emt 0:03:02]} 5. O-O {[%emt 0:01:40]} Nge7 {[%emt 0:05:53]} 6. c3 {[%emt 0:02:05]} b5 {[%emt 0:19:53]} 7. Bb3 {[%emt 0:03:55]} O-O {[%emt 0:10:14]} 8. d4 {[%emt 0:02:14]} exd4 {[%emt 0:01:18]} 9. cxd4 {[%emt 0:01:32]} Bb6 {[%emt 0:02:31]} 10. Nc3 {[%emt 0:03:06]} h6 {[%emt 0:09:28]} 11. Bf4 {[%emt 0:03:44]} Ng6 {[%emt 0:06:51]} 12. Bg3 {[%emt 0:01:46]} Bb7 {[%emt 0:02:30]} 13. Nd5 {[%emt 0:02:36]} Ba5 {[%emt 0:04:16]} 14. Qd3 {[%emt 0:03:02]} Nce7 {[%emt 0:03:49]} 15. Nxe7+ {[%emt 0:03:01]} Nxe7 {[%emt 0:00:02]} 16. Rac1 {[%emt 0:02:16]} d5 {[%emt 0:05:49]} 17. e5 {[%emt 0:01:45]} Bb6 {[%emt 0:00:57]} 18. Bc2 {[%emt 0:01:26]} g6 {[%emt 0:03:58]} 19. Bh4 {[%emt 0:02:34]} Qd7 {[%emt 0:03:15]} 20. Qe3 {[%emt 0:02:29]} Kh7 {[%emt 0:03:46]} 21. Bf6 {[%emt 0:02:36]} Ng8 {[%emt 0:00:58]} 22. Ng5+ {[%emt 0:09:42]} hxg5 {[%emt 0:00:14]} 23. Qxg5 {[%emt 0:00:10]} Nxf6 {[%emt 0:02:55]} 24. exf6 {[%emt 0:00:19]} Bxd4 {[%emt 0:00:18]} 25. Qh4+ {[%emt 0:00:42]} Kg8 {[%emt 0:00:20]} 26. Qxd4 {[%emt 0:00:07]} Qe6 {[%emt 0:01:14]} 27. Rfe1 {[%emt 0:01:25]} Qd6 {[%emt 0:00:02]} 28. Re3 {[%emt 0:02:11]} Rfe8 {[%emt 0:02:13]} 29. Rce1 {[%emt 0:03:17]} Rxe3 {[%emt 0:00:57]} 30. Rxe3 {[%emt 0:00:21]} Qc6 {[%emt 0:03:28]} 31. Qc3 {[%emt 0:03:19]} Qxc3 {[%emt 0:00:39]} 32. Rxc3 {[%emt 0:01:12]} Re8 {[%emt 0:00:38]} 33. Kf1 {[%emt 0:00:18]} c6 {[%emt 0:00:04]} 34. b4 {[%emt 0:02:00]} Re6 {[%emt 0:00:24]} 35. Re3 {[%emt 0:01:40]} Bc8 {[%emt 0:01:16]} 36. Rxe6 {[%emt 0:01:58]} Bxe6 {[%emt 0:00:01]} 37. Ke2 {[%emt 0:00:26]} Kf8 {[%emt 0:00:10]} 38. Ke3 {[%emt 0:01:33]} Ke8 {[%emt 0:01:25]} 39. Kd4 {[%emt 0:01:18]} Kd8 {[%emt 0:00:41]} 40. f3 {[%emt 0:00:00]} Kd7 {[%emt 0:00:00]} 41. Ke5 {[%emt 0:03:29]} d4 {[%emt 0:14:56]} 42. a3 {[%emt 0:01:30]} Bc4 {[%emt 0:01:32]} 43. Kxd4 {[%emt 0:01:29]} Kd6 {[%emt 0:00:45]} 44. Be4 {[%emt 0:01:25]} Be6 {[%emt 0:03:19]} 45. h4 {[%emt 0:04:23]} Bc4 {[%emt 0:01:49]} 46. g4 {[%emt 0:01:44]} Be2 {[%emt 0:00:32]} 47. h5 {[%emt 0:01:35]} Bc4 {[%emt 0:01:43]} 48. h6 {[%emt 0:00:31]} 1-0

[Event "Polish Youth G16 Championship 2023"]
[Site "Jastrzebia Gora"]
[Date "2023.03.13"]
[Round "2.1"]
[White "Lazniewska, Zofia"]
[Black "Smietanska, Wiktoria"]
[Result "1/2-1/2"]
[ECO "B22"]
[WhiteElo "1621"]
[BlackElo "1954"]
[Annotator "TA"]
[PlyCount "89"]
[EventDate "2023.03.11"]
[EventType "swiss"]
[EventCountry "POL"]
[SourceTitle "playchess.com"]
[Source "ChessBase"]
[SourceQuality "1"]
[TimeControl "40/5400+30:1800+30"]

{[%evp 18,89,3,2,3,5,18,22,50,21,14,0,1,2,6,0,-3,-20,-20,-22,-12,-12,-16,-25,-20,-21,-10,-23,0,-21,-14,-14,-14,-16,-14,-25,-25,-27,-25,-40,-26,-40,-17,-22,-24,-75,-22,-8,0,0,0,0,0,-13,-18,-18,0,0,0,0,0,0,0,0,0,0,12,0,0,0,0,9,8,0]} 1. e4 {[%emt 0:00:01]} c5 {[%emt 0:00:05]} 2. c3 {[%emt 0:00:05]} d5 {[%emt 0:00:05]} 3. exd5 {[%emt 0:00:06]} Qxd5 {[%emt 0:00:07]} 4. d4 {[%emt 0:00:07]} Nc6 {[%emt 0:00:08]} 5. Nf3 {[%emt 0:00:16]} Bg4 {[%emt 0:00:10]} 6. Be2 {[%emt 0:00:05]} cxd4 {[%emt 0:00:28]} 7. cxd4 {[%emt 0:00:05]} e6 {[%emt 0:00:11]} 8. Be3 {[%emt 0:00:41]} Nf6 {[%emt 0:03:16]} 9. Nc3 {[%emt 0:00:14]} Qa5 {[%emt 0:02:01]} 10. O-O {[%emt 0:00:26]} Rd8 {[%emt 0:12:47] B22: Sicilian: 2 c3.} 11. h3 {[%emt 0:04:23]} Bh5 {[%emt 0:00:28]} 12. Qb3 {[%emt 0:06:04] [#] g4 is the strong threat.} Qb4 {[%emt 0:06:03]} 13. Qxb4 {[%emt 0:04:40]} (13. g4 {is more complex.} Bg6 14. Bb5 Bd6 15. Qxb4 Bxb4 16. Ne5) 13... Bxb4 {[%emt 0:00:13]} 14. Rfd1 {[%emt 0:05:06]} O-O {[%emt 0:02:15]} 15. Rac1 {[%emt 0:11:05]} h6 {[%emt 0:02:35]} 16. Kf1 {[%emt 0:05:58]} Ne7 {[%emt 0:28:01] [#]} 17. Ne5 $146 {[%emt 0:06:34]} ({Predecessor:} 17. g4 Bg6 18. Ne5 Bh7 19. Bf3 Ned5 20. Nxd5 Nxd5 21. Bxd5 Rxd5 22. Rc7 Rb8 23. Ke2 {½-½ Nielsen,R (2062)-Rosenkilde,A (2204) Politiken Cup 32nd 2010 (10)}) 17... Bxe2+ {[%emt 0:00:20]} 18. Kxe2 {[%emt 0:00:19]} Nfd5 {[%emt 0:04:10]} 19. Nxd5 {[%emt 0:03:48]} Nxd5 {[%emt 0:00:32]} 20. Rc4 {[%emt 0:07:37]} Bd6 {[%emt 0:01:39]} 21. Nd3 {[%emt 0:03:11]} Be7 {[%emt 0:08:52]} 22. Rdc1 {[%emt 0:06:35]} Bd6 {[%emt 0:14:04]} 23. Nc5 {[%emt 0:03:59]} b6 {[%emt 0:00:42]} (23... b5 $5 24. R4c2 $8 Bc7 $11) 24. Nd3 {[%emt 0:00:40]} f6 {[%emt 0:01:37]} 25. a3 {[%emt 0:05:27]} Kf7 {[%emt 0:01:19]} 26. Ra4 {[%emt 0:02:06]} Rd7 {[%emt 0:01:02]} 27. Rac4 {[%emt 0:00:27]} Rfd8 {[%emt 0:01:42]} 28. R1c2 {[%emt 0:06:09]} Ne7 {[%emt 0:01:33]} 29. a4 {[%emt 0:01:17]} Nf5 {[%emt 0:06:53]} 30. g4 {[%emt 0:01:19]} Ne7 {[%emt 0:00:22]} 31. Nb4 {[%emt 0:01:02] [#]} (31. h4 $11 {remains equal.}) 31... h5 {[%emt 0:00:52]} 32. Nc6 $11 {[%emt 0:02:06] The position is equal.} Rh8 {[%emt 0:01:03]} 33. Nxe7 {[%emt 0:00:42]} Kxe7 {[%emt 0:00:17]} 34. g5 {[%emt 0:05:54]} Kf7 {[%emt 0:00:58]} 35. h4 {[%emt 0:00:23]} fxg5 {[%emt 0:00:25]} 36. Bxg5 {[%emt 0:00:10]} Be7 {[%emt 0:00:33]} 37. Rc7 {[%emt 0:00:50]} Rhd8 {[%emt 0:00:08]} 38. f4 {[%emt 0:02:12]} Bxg5 {[%emt 0:00:50]} 39. fxg5 {[%emt 0:00:11]} Kg6 {[%emt 0:00:37] And now ...Rxc7 would win.} 40. Rxd7 {[%emt 0:00:00]} Rxd7 {[%emt 0:00:00] KR-KR} 41. Ke3 {[%emt 0:03:10]} Kf5 {[%emt 0:09:44]} 42. Rc4 {[%emt 0:03:16]} Rf7 {[%emt 0:06:14]} 43. Kf3 {[%emt 0:02:40]} Rb7 {[%emt 0:09:32]} 44. Rc8 {[%emt 0:05:26]} Rf7 {[%emt 0:01:05] Prevents Rf8.} 45. Rc4 {[%emt 0:01:10] Weighted Error Value: White=0.07 (flawless) /Black=0.08 (flawless)} 1/2-1/2

[Event "Polish Youth G16 Championship 2023"]
[Site "Jastrzebia Gora"]
[Date "2023.03.13"]
[Round "2.2"]
[White "Zielinska, Aleksandra"]
[Black "Pawicka, Magdalena"]
[Result "1-0"]
[ECO "A45"]
[WhiteElo "1613"]
[BlackElo "1805"]
[Annotator "NA RC COMBH"]
[PlyCount "153"]
[EventDate "2023.03.11"]
[EventType "swiss"]
[EventCountry "POL"]
[SourceTitle "playchess.com"]
[Source "ChessBase"]
[SourceQuality "1"]
[TimeControl "40/5400+30:1800+30"]

1. d4 {[%emt 0:00:02]} Nf6 {[%emt 0:00:18]} 2. Nc3 {[%emt 0:00:10]} d5 {[%emt 0:00:47]} 3. Bf4 {[%emt 0:00:11]} c5 {[%emt 0:07:36]} 4. e3 {[%emt 0:00:23]} a6 {[%emt 0:04:41]} 5. Be2 {[%emt 0:07:07]} e6 {[%emt 0:01:46]} 6. h3 {[%emt 0:06:07]} Bd6 {[%emt 0:01:21]} 7. Nf3 {[%emt 0:04:25]} Nc6 {[%emt 0:04:05]} 8. O-O {[%emt 0:12:27]} O-O {[%emt 0:11:24]} 9. Na4 {[%emt 0:08:58]} c4 {[%emt 0:11:35]} 10. b3 {[%emt 0:08:13]} b5 {[%emt 0:04:34]} 11. Bxd6 {[%emt 0:06:28]} Qxd6 {[%emt 0:00:06]} 12. Nc5 {[%emt 0:00:07]} Nd7 {[%emt 0:08:18]} 13. Nxd7 {[%emt 0:06:18]} Bxd7 {[%emt 0:00:11]} 14. c3 {[%emt 0:00:28]} a5 {[%emt 0:07:00]} 15. a4 {[%emt 0:07:00]} Na7 {[%emt 0:08:15]} 16. Ne5 {[%emt 0:10:33]} Be8 {[%emt 0:03:39]} 17. axb5 {[%emt 0:11:03]} Nxb5 {[%emt 0:00:11]} 18. Qc2 {[%emt 0:00:41]} cxb3 {[%emt 0:02:06]} 19. Qxb3 {[%emt 0:00:07]} a4 {[%emt 0:01:20]} 20. Qb2 {[%emt 0:05:57]} Rb8 {[%emt 0:05:16]} 21. Rfb1 {[%emt 0:02:01]} f6 {[%emt 0:01:46]} 22. Nd3 {[%emt 0:01:07]} Bd7 {[%emt 0:01:31]} 23. Qc1 {[%emt 0:00:56]} Rfc8 {[%emt 0:04:08]} 24. Nc5 {[%emt 0:00:24]} Qc6 {[%emt 0:07:07]} 25. Bxb5 {[%emt 0:00:33]} Rxb5 {[%emt 0:00:05]} 26. Rxb5 {[%emt 0:00:08]} Qxb5 {[%emt 0:00:10]} 27. Nxa4 {[%emt 0:00:49]} Kf7 {[%emt 0:03:44]} 28. Nc5 {[%emt 0:00:22]} Rc7 {[%emt 0:00:06]} 29. Rb1 {[%emt 0:00:38]} Qc6 {[%emt 0:01:01]} 30. Qb2 {[%emt 0:00:27]} e5 {[%emt 0:00:37]} 31. Qb6 {[%emt 0:00:48]} Qxb6 {[%emt 0:00:32]} 32. Rxb6 {[%emt 0:00:05]} exd4 {[%emt 0:00:33]} 33. cxd4 {[%emt 0:00:13]} Ke7 {[%emt 0:00:06]} 34. f3 {[%emt 0:00:47]} Bf5 {[%emt 0:00:16]} 35. e4 {[%emt 0:01:00]} dxe4 {[%emt 0:00:11]} 36. fxe4 {[%emt 0:00:03]} Bg6 {[%emt 0:00:09]} 37. Re6+ {[%emt 0:00:42]} Kf7 {[%emt 0:00:27]} 38. Rb6 {[%emt 0:00:56]} Re7 {[%emt 0:00:11]} 39. Rb7 {[%emt 0:00:16]} Rxb7 {[%emt 0:00:56]} 40. Nxb7 {[%emt 0:00:00]} Ke7 {[%emt 0:00:00]} 41. Nc5 {[%emt 0:01:50]} Kd6 {[%emt 0:01:01]} 42. Kf2 {[%emt 0:00:32]} Be8 {[%emt 0:03:00]} 43. Kf3 {[%emt 0:02:38]} Bb5 {[%emt 0:00:58]} 44. g3 {[%emt 0:01:28]} Bf1 {[%emt 0:04:33]} 45. Kg4 {[%emt 0:03:31]} Be2+ {[%emt 0:02:51]} 46. Kf4 {[%emt 0:06:22]} Bf1 {[%emt 0:00:13]} 47. h4 {[%emt 0:00:55]} Bh3 {[%emt 0:00:49]} 48. g4 {[%emt 0:01:25]} Ke7 {[%emt 0:03:09]} 49. d5 {[%emt 0:02:56]} Bf1 {[%emt 0:04:53]} 50. Ne6 {[%emt 0:03:33]} Kf7 {[%emt 0:01:28]} 51. g5 {[%emt 0:05:18]} Bh3 {[%emt 0:01:39]} 52. Nd4 {[%emt 0:01:23]} Bg2 {[%emt 0:10:44]} 53. gxf6 {[%emt 0:00:58]} gxf6 {[%emt 0:00:13]} 54. Nf5 {[%emt 0:01:42]} Ke8 {[%emt 0:00:50]} 55. Ne3 {[%emt 0:02:21]} Bh3 {[%emt 0:00:13]} 56. Ng4 {[%emt 0:00:37]} Ke7 {[%emt 0:00:40]} 57. d6+ {[%emt 0:01:10]} Kxd6 {[%emt 0:00:46]} 58. Nxf6 {[%emt 0:00:08]} h6 {[%emt 0:01:02]} 59. Ng8 {[%emt 0:00:37]} Be6 {[%emt 0:00:56]} 60. Nxh6 {[%emt 0:00:11]} Ke7 {[%emt 0:00:03]} 61. Ke5 {[%emt 0:01:06]} Bb3 {[%emt 0:00:23]} 62. Ng4 {[%emt 0:00:45]} Kf7 {[%emt 0:00:26]} 63. Kf5 {[%emt 0:00:46]} Be6+ {[%emt 0:00:31]} 64. Kg5 {[%emt 0:00:13]} Bb3 {[%emt 0:00:19]} 65. h5 {[%emt 0:00:37]} Bc2 {[%emt 0:00:09]} 66. Nf6 {[%emt 0:00:33]} Bb1 {[%emt 0:01:07]} 67. h6 {[%emt 0:00:33]} Bc2 {[%emt 0:00:37]} 68. e5 {[%emt 0:00:36]} Bb1 {[%emt 0:00:30]} 69. Nd5 {[%emt 0:00:40]} Bh7 {[%emt 0:01:18]} 70. Nf6 $2 {[%emt 0:00:04]} (70. Nf4 {mates} Be4 71. e6+ Kg8 72. e7 Kf7 73. Ng6 {[%mdl 64] Promotion} Bxg6 74. e8=Q+ {[%mdl 64] Deflection, Promotion} Kxe8 75. Kxg6) 70... Bc2 {[%emt 0:00:29]} 71. Nh5 {[%emt 0:00:30]} Bb1 {[%emt 0:00:41]} 72. Nf4 {[%emt 0:00:11]} Bh7 {[%emt 0:00:16]} 73. e6+ {[%emt 0:01:14]} Ke7 {[%emt 0:00:20]} 74. Ng6+ {[%emt 0:00:07]} Ke8 {[%emt 0:00:39]} 75. Kf6 {[%emt 0:00:50]} Bg8 {[%emt 0:00:04]} 76. e7 {[%emt 0:00:31]} Bh7 {[%emt 0:00:23]} 77. Kg7 {[%emt 0:00:18]} 1-0